bitfinex/quotes_ETHUSD_20240926
["timestamp","ask_amount","ask_price","bid_price","bid_amount"]
[1727362733230,3.80657,2627.1,2626.6,4.43912892]
[1727362733382,3.80673,2627.0,2626.6,4.43912892]
[1727362733583,3.80691,2626.8,2626.3,4.34252892]
[1727362734025,3.80715,2626.7,2626.2,0.0966]
[1727362734208,3.80691,2626.8,2626.4,0.04826423]
[1727362734518,3.80568,2627.7,2626.0,4.34252892]
[1727362734519,3.80734,2626.5,2626.0,4.34252892]
[1727362734830,0.85447655,2626.7,2626.0,4.34252892]
[1727362734831,3.8073,2626.6,2626.0,4.34252892]
[1727362735130,3.80749,2626.4,2626.0,4.34252892]
[1727362735331,0.7593,2626.7,2625.7,3.80846]
[1727362735332,3.80763,2626.3,2625.7,4.34252892]
[1727362735514,3.8074,2626.5,2625.9,3.80818]
[1727362736033,3.80682,2626.9,2626.2,3.80775]
[1727362736233,3.80682,2626.9,2626.0,4.41868141]
[1727362736234,0.761331,2626.9,2626.0,4.34252892]
[1727362736536,3.80729,2626.6,2625.9,3.80818]
[1727362736824,3.8077,2626.3,2625.8,4.84050244]
[1727362737183,4.61821,2626.3,2625.6,0.0966]
[1727362737501,3.80833,2625.9,2625.4,4.84050244]
[1727362737697,3.80837,2625.8,2625.4,4.84050244]
[1727362737897,3.8085,2625.7,2625.0,4.93710244]
[1727362738300,3.8085,2625.7,2625.0,0.0966]
[1727362738530,3.8089,2625.5,2625.0,0.0966]
[1727362738854,3.80909,2625.3,2624.7,3.90652]
[1727362739129,3.80909,2625.3,2624.8,3.80978]
[1727362739330,3.80909,2625.3,2624.6,4.84050244]
[1727362739531,3.80931,2625.2,2624.2,4.84050244]
[1727362739683,3.80931,2625.2,2624.7,3.80994]
[1727362740438,3.80899,2625.4,2624.7,3.80994]
[1727362740637,0.09523021,2625.3,2624.5,8.65529543]
[1727362740921,7.61924,2625.0,2624.3,7.62089]
[1727362741177,3.80962,2625.0,2624.4,0.762089]
[1727362741332,3.80962,2625.0,2624.3,3.81042]
[1727362741533,0.8105,2625.6,2624.1,8.75245543]
[1727362741534,4.6192,2625.6,2624.1,8.75245543]
[1727362741733,3.80968,2624.9,2624.1,8.75245543]
[1727362741899,3.8099,2624.8,2624.2,3.81056]
[1727362742099,0.77,2624.9,2624.1,9.62768097]
[1727362742300,0.77,2624.9,2624.2,3.81066]
[1727362742301,3.81005,2624.7,2624.2,3.81066]
[1727362742501,3.81005,2624.7,2624.2,5.06564222]
[1727362742731,8.38954,2624.9,2624.2,5.06564222]
[1727362742937,4.57974,2624.9,2624.3,3.81053]
[1727362743231,4.57974,2624.9,2624.4,3.81039]
[1727362743436,0.77,2624.9,2624.4,0.0761987]
[1727362743616,4.57977,2624.9,2624.4,3.8865587]
[1727362743818,4.57977,2624.9,2624.4,3.81036]
[1727362744036,3.81,2624.7,2623.7,4.84510543]
[1727362744218,0.77,2624.9,2624.0,3.81088]
[1727362744405,3.81079,2624.2,2623.7,4.84510543]
[1727362744606,3.81121,2623.9,2623.4,0.0966]
[1727362744808,3.81014,2624.6,2622.4,7.34]
[1727362744809,3.81163,2623.6,2623.0,3.9089]
[1727362745016,3.81132,2623.8,2623.0,3.9089]
[1727362745201,3.81172,2623.5,2623.1,0.3977832]
[1727362745404,3.90715745,2623.4,2623.0,0.0966]
[1727362745629,3.81208,2623.3,2622.9,0.068932]
[1727362746001,3.81186,2623.4,2622.9,0.068932]
[1727362746241,7.62384,2623.4,2622.9,0.4570962]
[1727362746550,3.81223,2623.2,2622.9,0.068932]
[1727362746839,3.81211,2623.3,2622.9,0.068932]
[1727362747208,3.81237,2623.1,2622.9,0.068932]
[1727362747828,3.90773243,2623.0,2622.9,0.068932]
[1727362748134,5.46594267,2623.0,2622.9,0.068932]
[1727362748598,4.69393243,2623.0,2622.9,0.068932]
[1727362748806,4.59862,2623.0,2622.9,0.068932]
[1727362750916,7.59862,2623.0,2622.9,0.068932]
[1727362751117,7.59862,2623.0,2621.5,5.01063743]
[1727362751118,3.81378,2622.1,2621.5,0.165532]
[1727362751313,3.8137,2622.2,2621.5,0.5635572]
[1727362751314,4.6014,2622.2,2621.5,0.5635572]
[1727362751514,3.81336,2622.4,2621.8,3.81415]
[1727362751712,3.81336,2622.4,2621.7,3.81431]
[1727362752249,3.81362,2622.2,2621.5,0.165532]
[1727362752545,3.81362,2622.2,2621.5,1.04806074]
[1727362752718,3.81362,2622.2,2621.6,3.81444]
[1727362752719,7.62731,2622.2,2621.6,3.81444]
[1727362752919,3.81362,2622.2,2621.6,3.81437]
[1727362753132,7.6273,2622.2,2621.6,4.30061307]
[1727362753358,3.81362,2622.2,2621.5,1.04806074]
[1727362753538,3.81399,2622.0,2621.5,1.04806074]
[1727362753904,3.81399,2622.0,2621.5,0.95146074]
[1727362754107,3.81397,2622.0,2621.5,0.95146074]
[1727362754331,7.62794,2622.0,2621.5,0.95146074]
[1727362754554,3.81397,2622.0,2621.5,4.76605074]
[1727362754723,3.81365,2622.2,2621.6,4.67247907]
[1727362755336,0.7999,2622.5,2621.5,0.068932]
[1727362755337,3.81391,2622.0,2621.5,0.068932]
[1727362756608,4.61305,2622.5,2621.8,3.81417]
[1727362756845,3.81316,2622.5,2622.0,3.81377]
[1727362757411,3.81325,2622.5,2622.0,3.81377]
[1727362757834,3.81294,2622.7,2622.0,3.81377]
[1727362758031,3.81262,2622.9,2622.2,3.81349]
[1727362758246,3.81209,2623.3,2622.8,8.17756738]
[1727362758411,3.81252,2623.0,2622.8,4.85140491]
[1727362758613,3.81228,2623.2,2622.6,3.97845]
[1727362758835,0.8092,2623.5,2622.8,4.31430049]
[1727362759012,3.81131,2623.8,2623.1,3.81223]
[1727362759213,0.8011,2624.3,2623.3,0.1655]
[1727362759443,3.81136,2623.8,2623.3,0.1655]
[1727362759644,3.81136,2623.8,2622.9,3.81245]
[1727362759952,3.81171,2623.5,2622.9,3.97806]
[1727362760156,4.61169,2624.3,2623.4,3.81177]
[1727362760322,0.8011,2624.3,2623.2,3.81203]
[1727362760651,3.81115,2623.9,2623.2,7.62406]
[1727362760854,3.81069,2624.2,2623.3,0.47703949]
[1727362761173,1.262241,2624.3,2623.1,3.81216]
[1727362761358,1.262241,2624.3,2622.9,3.97805]
[1727362761359,3.81131,2623.8,2622.9,3.97805]
[1727362761561,3.81151,2623.7,2622.9,3.97805]
[1727362761735,3.81151,2623.7,2623.0,3.81242]
[1727362762354,3.81151,2623.7,2622.9,3.97805]
[1727362762355,3.81151,2623.7,2623.1,3.81224]
[1727362762564,3.81151,2623.7,2623.1,3.81218]
[1727362762732,3.81207,2623.3,2622.7,3.81284]
[1727362762913,3.81176,2623.5,2622.7,3.81284]
[1727362763266,3.81176,2623.5,2622.8,3.8127]
[1727362763426,4.59204,2623.6,2622.9,4.575034]
[1727362763632,3.81144,2623.7,2622.9,0.762554]
[1727362763820,3.81155,2623.6,2623.0,0.05133167]
[1727362764019,3.81173,2623.5,2623.0,0.05133167]
[1727362764516,3.81199,2623.3,2623.0,0.05133167]
[1727362764714,3.81173,2623.5,2623.0,0.05133167]
[1727362765246,7.62356,2623.5,2623.0,0.83553384]
[1727362765420,3.81173,2623.5,2623.0,0.83553384]
[1727362765615,7.62355,2623.5,2623.0,0.83553384]
[1727362765859,3.81136,2623.8,2623.2,8.66342491]
[1727362766058,3.811,2624.0,2623.3,4.75447077]
[1727362766059,3.81124,2623.9,2623.3,4.75447077]
[1727362766269,3.81128,2623.8,2623.3,0.86634249]
[1727362766448,3.81128,2623.8,2623.3,0.91731648]
[1727362766615,7.62208,2624.0,2623.3,4.72927648]
[1727362766827,3.81113,2623.9,2623.4,1.26388527]
[1727362767128,0.7504,2624.3,2623.2,8.66342491]
[1727362767129,3.81076,2624.2,2623.5,0.05073558]
[1727362767471,3.81137,2623.8,2623.3,0.1655]
[1727362767787,4.57754,2623.7,2623.6,0.05061639]
[1727362768068,4.57754,2623.7,2622.9,0.1655]
[1727362768069,3.81187,2623.4,2622.9,0.1655]
[1727362768269,7.62385,2623.4,2622.9,0.1655]
[1727362768571,3.81187,2623.4,2622.9,0.944588]
[1727362768778,0.766,2623.7,2622.9,0.944588]
[1727362768937,7.62421,2623.3,2622.9,0.1655]
[1727362769137,3.81214,2623.2,2622.9,0.1655]
[1727362769843,3.81228,2623.1,2622.6,3.81291]
[1727362770037,3.81208,2623.3,2622.7,3.81276]
[1727362770346,0.766,2623.7,2622.8,3.81271]
[1727362770672,0.766,2623.7,2622.8,3.81262]
[1727362770673,3.81194,2623.4,2622.8,3.81262]
[1727362771032,3.81199,2623.3,2622.8,3.81262]
[1727362771281,3.81199,2623.3,2622.6,3.81291]
[1727362771572,3.81214,2623.2,2622.6,3.8129]
[1727362771778,3.81214,2623.2,2622.7,3.81277]
[1727362772072,7.62436,2623.2,2622.6,3.8129]
[1727362772280,3.81265,2622.9,2622.5,0.1917776]
[1727362772453,0.09531265,2623.1,2622.5,0.0262776]
[1727362772454,3.81244,2623.0,2622.5,0.0262776]
[1727362772638,0.7936,2623.1,2622.5,0.0262776]
[1727362772836,3.81286,2622.7,2622.5,0.0262776]
[1727362773248,3.813,2622.6,2622.5,0.0262776]
[1727362773463,3.81286,2622.7,2622.5,0.0262776]
[1727362773672,3.81266,2622.9,2622.5,0.0262776]
[1727362773850,3.81261,2622.9,2622.5,0.0262776]
[1727362774473,3.81266,2622.9,2622.5,0.41023336]
[1727362774678,3.81266,2622.9,2622.5,0.0262776]
[1727362774841,3.81237,2623.1,2622.5,0.0262776]
[1727362774842,7.62478,2623.1,2622.5,0.0262776]
[1727362775248,7.62478,2623.1,2622.5,3.8393476]
[1727362775600,3.81237,2623.1,2622.5,3.8394076]
[1727362775895,3.81274,2622.8,2622.5,0.0262776]
[1727362776254,3.813,2622.6,2622.5,0.0262776]
[1727362776647,3.81288,2622.7,2622.5,0.0262776]
[1727362777391,3.90831265,2622.6,2622.5,0.0262776]
[1727362777597,4.66789926,2622.6,2622.5,0.0262776]
[1727362777889,4.64068,2622.7,2622.5,0.0262776]
[1727362778100,3.81272,2622.8,2622.5,0.07858749]
[1727362778395,3.81286,2622.7,2622.5,0.07858749]
[1727362778562,3.81282,2622.8,2622.5,0.07858749]
[1727362778764,3.81268,2622.9,2622.5,0.07858749]
[1727362778990,3.81286,2622.7,2622.5,0.07858749]
[1727362779446,3.81272,2622.8,2622.5,0.07858749]
[1727362779847,3.8125,2623.0,2622.5,3.89169749]
[1727362780086,3.8126,2622.9,2622.5,0.49193316]
[1727362780289,4.64018,2623.1,2622.5,4.30506316]
[1727362780290,3.81246,2623.0,2622.5,4.30506316]
[1727362780588,3.81263,2622.9,2622.5,0.49193316]
[1727362780752,3.81246,2623.0,2622.5,0.49193316]
[1727362780753,3.81272,2622.8,2622.5,0.49193316]
[1727362781086,3.813,2622.6,2622.5,0.07858749]
[1727362783470,3.81248,2623.0,2622.5,3.89170749]
[1727362783670,3.81269,2622.9,2622.5,0.07858749]
[1727362783870,3.81243,2623.0,2622.5,3.89160749]
[1727362784082,3.81243,2623.0,2622.6,3.813]
[1727362784407,3.81243,2623.0,2622.6,3.86563972]
[1727362784568,3.81214,2623.2,2622.7,3.81279]
[1727362784770,0.4647082,2623.1,2622.7,3.81279]
[1727362785002,3.81214,2623.2,2622.8,0.05240118]
[1727362785203,0.46471011,2623.1,2622.8,0.05240118]
[1727362785404,0.46471011,2623.0,2622.6,0.93596075]
[1727362785569,7.62409,2623.3,2622.9,0.05223994]
[1727362785770,0.46505022,2623.2,2622.7,4.72658716]
[1727362786010,0.46505022,2623.1,2623.0,0.05212069]
[1727362786267,3.81197,2623.4,2623.0,0.05212069]
[1727362786397,3.81197,2623.4,2622.6,0.1655]
[1727362786398,0.456897,2623.4,2622.6,0.1655]
[1727362786601,3.81252,2623.0,2622.6,0.1655]
[1727362786786,0.46537422,2622.9,2622.6,0.1655]
[1727362786989,0.46537422,2622.9,2622.7,3.81286]
[1727362787308,0.46537422,2622.9,2622.8,3.81271]
[1727362787535,0.46537422,2622.9,2622.8,4.210531]
[1727362787687,3.81185,2623.4,2622.9,3.81247]
[1727362788108,0.46562159,2623.3,2622.9,3.81247]
[1727362788289,0.46562159,2623.3,2623.0,3.8123]
[1727362788494,0.757,2623.6,2622.6,0.1655]
[1727362788692,3.81238,2623.1,2622.5,0.0262776]
[1727362789401,7.6253,2622.9,2622.5,0.0262776]
[1727362789713,3.81259,2622.9,2622.5,0.0262776]
[1727362789916,3.81247,2623.0,2622.5,3.8394176]
[1727362790138,2.0,2621.5,2621.3,0.7972693]
[1727362790293,2.0,2621.5,2621.2,0.0597858]
[1727362790294,4.6322,2621.3,2621.2,0.0597858]
[1727362790497,3.8149,2621.3,2621.2,0.0597858]
[1727362791337,4.577865,2621.3,2621.2,0.0597858]
[1727362792010,8.368465,2621.3,2621.2,0.0597858]
[1727362792252,4.48454,2620.1,2620.0,0.0597858]
[1727362792698,9.35264668,2620.1,2620.0,0.0597858]
[1727362793031,10.66956135,2620.1,2620.0,0.0597858]
[1727362793224,13.66956135,2620.1,2620.0,0.0597858]
[1727362793424,8.80145467,2620.1,2620.0,0.0597858]
[1727362794308,10.80145467,2620.1,2620.0,0.0597858]
[1727362796309,11.35145467,2620.1,2620.0,0.0597858]
[1727362797253,11.84584252,2620.1,2620.0,0.0597858]
[1727362798158,8.80145467,2620.1,2620.0,0.0597858]
[1727362798367,7.48454,2620.1,2620.0,0.0597858]
[1727362798738,4.48454,2620.1,2620.0,0.0597858]
[1727362801066,6.48454,2620.1,2620.0,0.0597858]
[1727362801369,4.48454,2620.1,2620.0,0.0597858]
[1727362801554,8.80145467,2620.1,2620.0,0.0597858]
[1727362801925,3.81664,2620.1,2620.0,0.0597858]
[1727362802529,6.62054,2620.1,2620.0,0.0597858]
[1727362803363,10.26585265,2620.1,2620.0,0.0597858]
[1727362803573,9.62054,2620.1,2620.0,0.0597858]
[1727362803869,7.62054,2620.1,2620.0,0.0597858]
[1727362804233,8.764244,2620.1,2620.0,0.0597858]
[1727362804957,12.787244,2620.1,2620.0,0.0597858]
[1727362805162,13.337244,2620.1,2620.0,0.0597858]
[1727362805472,8.764244,2620.1,2620.0,0.0597858]
[1727362805972,9.314244,2620.1,2620.0,0.0597858]
[1727362806731,5.764244,2620.1,2620.0,0.0597858]
[1727362806982,4.62054,2620.1,2620.0,0.0597858]
[1727362807428,4.71585265,2620.1,2620.0,0.0597858]
[1727362807630,4.62054,2620.1,2620.0,0.0597858]
[1727362808439,7.71585265,2620.1,2620.0,0.0597858]
[1727362808804,7.62054,2620.1,2620.0,0.0597858]
[1727362808971,9.45105467,2620.1,2620.0,0.0597858]
[1727362809571,5.64715467,2620.1,2620.0,0.0597858]
[1727362809741,3.81664,2620.1,2620.0,0.0597858]
[1727362811883,6.81664,2620.1,2620.0,0.0597858]
[1727362812882,3.81664,2620.1,2620.0,0.0597858]
[1727362814454,6.81664,2620.1,2620.0,0.0597858]
[1727362815097,3.81664,2620.1,2620.0,0.0597858]
[1727362821461,3.91195265,2620.1,2620.0,0.0597858]
[1727362821767,3.81664,2620.1,2620.0,0.0597858]
[1727362822651,3.81608,2620.5,2620.0,0.0597858]
[1727362822852,3.81553,2620.9,2620.0,0.0597858]
[1727362822853,3.81657,2620.2,2620.1,0.88141761]
[1727362823508,3.8165,2620.2,2620.1,0.88141761]
[1727362823656,3.8165,2620.2,2620.1,0.8318]
[1727362823993,3.81664,2620.1,2620.0,0.0597858]
[1727362824151,3.81664,2620.1,2620.0,0.10952292]
[1727362824355,3.81575,2620.8,2620.1,0.8268]
[1727362824678,3.81506,2621.2,2620.6,8.19087673]
[1727362824880,3.81506,2621.2,2620.7,0.8268]
[1727362825077,3.81509,2621.2,2620.7,4.69138074]
[1727362825381,3.81519,2621.1,2620.9,0.8268]
[1727362825551,0.09531265,2621.0,2620.7,0.04890074]
[1727362825754,3.81592,2620.6,2620.5,0.8268]
[1727362826185,3.81664,2620.1,2620.0,0.0597858]
[1727362826405,4.198304,2620.1,2620.0,0.0597858]
[1727362826563,4.29361665,2620.1,2620.0,0.0597858]
[1727362826767,4.198304,2620.1,2620.0,0.0597858]
[1727362827153,3.81664,2620.1,2620.0,0.0597858]
[1727362827405,3.81651,2620.2,2620.0,0.8190858]
[1727362827607,3.81655,2620.2,2620.0,0.8190858]
[1727362828104,3.81625,2620.4,2620.0,0.8190858]
[1727362828305,3.8162,2620.5,2620.0,0.8190858]
[1727362828505,3.8162,2620.5,2620.0,1.28267438]
[1727362828900,3.81648,2620.3,2620.0,1.28267438]
[1727362829205,3.81664,2620.1,2620.0,0.8190858]
[1727362829421,3.81664,2620.1,2620.0,0.0597858]
[1727362829600,4.579965,2620.1,2620.0,0.0597858]
[1727362831288,4.579965,2620.1,2620.0,0.0481506]
[1727362831714,3.81664,2620.1,2620.0,0.0481506]
[1727362831926,3.81664,2620.1,2620.0,0.8174506]
[1727362832418,3.81664,2620.1,2620.0,0.0481506]
[1727362834686,3.8165,2620.2,2620.0,0.0481506]
[1727362834888,3.81601,2620.6,2620.1,0.7689]
[1727362835140,3.81623,2620.4,2620.1,1.23723697]
[1727362835425,3.81635,2620.3,2620.2,0.04920073]
[1727362835979,3.81571,2620.8,2620.3,3.81634]
[1727362836180,3.81581,2620.7,2620.4,0.8243]
[1727362836526,3.81581,2620.7,2620.4,0.87308935]
[1727362836816,3.81571,2620.8,2620.4,0.87308935]
[1727362837121,3.81558,2620.9,2620.4,5.16299935]
[1727362837280,3.8154,2621.0,2620.4,5.16299935]
[1727362837480,3.81511,2621.2,2620.5,0.7796]
[1727362837781,3.81511,2621.2,2620.7,0.7796]
[1727362837993,3.81562,2620.8,2620.7,0.7796]
[1727362838316,3.81562,2620.8,2620.7,0.7816691]
[1727362838516,3.81549,2620.9,2620.7,0.7816691]
[1727362838879,3.81427,2621.8,2620.7,0.7816691]
[1727362838880,3.81493,2621.3,2620.7,0.7816691]
[1727362839083,3.81493,2621.3,2620.7,1.24141901]
[1727362839508,3.81542,2621.0,2620.7,1.24141901]
[1727362839722,3.81542,2621.0,2620.7,0.7816691]
[1727362840610,3.81562,2620.8,2620.7,0.0020691]
[1727362841214,3.91093265,2620.8,2620.7,0.0020691]
[1727362841416,10.44886719,2620.8,2620.7,0.0020691]
[1727362841619,10.35355454,2620.8,2620.7,0.0020691]
[1727362841780,10.35621484,2620.8,2620.7,0.0020691]
[1727362841978,8.39476227,2620.8,2620.7,0.0020691]
[1727362842428,9.9638954,2620.8,2620.7,0.0020691]
[1727362842917,8.39476227,2620.8,2620.7,0.0020691]
[1727362845010,10.94476227,2620.8,2620.7,0.0020691]
[1727362846331,13.69041412,2620.8,2620.7,0.0020691]
[1727362846532,10.94476227,2620.8,2620.7,0.0020691]
[1727362846747,13.69041412,2620.8,2620.7,0.0020691]
[1727362847033,10.94476227,2620.8,2620.7,0.0020691]
[1727362847235,13.69041412,2620.8,2620.7,0.0020691]
[1727362847441,13.14041412,2620.8,2620.7,0.0020691]
[1727362847733,10.94476227,2620.8,2620.7,0.0020691]
[1727362848521,11.40784323,2620.8,2620.7,0.0020691]
[1727362848703,14.65114448,2620.8,2620.7,0.0020691]
[1727362849132,14.64982286,2620.8,2620.7,0.0020691]
[1727362849319,11.40784323,2620.8,2620.7,0.0020691]
[1727362850522,15.78167448,2620.8,2620.7,0.0020691]
[1727362850723,19.02365411,2620.8,2620.7,0.0020691]
[1727362850951,18.56057315,2620.8,2620.7,0.0020691]
[1727362851231,8.85790828,2620.8,2620.7,0.0020691]
[1727362851391,11.60267368,2620.8,2620.7,0.0020691]
[1727362851835,15.97654573,2620.8,2620.7,0.0020691]
[1727362852141,15.23178033,2620.8,2620.7,0.0020691]
[1727362852437,19.02452036,2620.8,2620.7,0.0020691]
[1727362852616,15.78178033,2620.8,2620.7,0.0020691]
[1727362853624,16.17541316,2620.8,2620.7,0.0006552]
[1727362854118,20.06691288,2620.8,2620.7,0.0006552]
[1727362854551,20.06653009,2620.8,2620.7,0.0006552]
[1727362854866,16.17541316,2620.8,2620.7,0.0006552]
[1727362855023,16.17559764,2620.8,2620.7,0.0006552]
[1727362855363,19.67319022,2620.8,2620.7,0.0006552]
[1727362855665,15.23196481,2620.8,2620.7,0.0006552]
[1727362856019,19.24808494,2620.8,2620.7,0.0006552]
[1727362856422,4.57013,2619.7,2619.6,0.01]
[1727362856627,4.28060129,2619.7,2619.6,0.01]
[1727362857051,5.85084512,2619.7,2619.6,0.01]
[1727362857326,4.28060129,2619.7,2619.6,0.86741797]
[1727362857631,0.46337129,2619.7,2619.6,0.86741797]
[1727362858332,0.46337129,2619.7,2619.6,1.34103092]
[1727362858526,0.45957456,2619.7,2619.6,0.53093092]
[1727362858923,0.45957456,2619.7,2619.6,4.34830092]
[1727362859133,3.81661,2620.2,2619.7,0.7644]
[1727362859368,0.45947679,2620.1,2619.9,0.7644]
[1727362859530,3.81637,2620.3,2620.0,1.222538]
[1727362859725,0.45945603,2620.2,2620.1,0.7644]
[1727362860051,0.45945603,2620.2,2620.1,0.887445]
[1727362860225,0.45945603,2620.2,2620.1,5.77751585]
[1727362860427,3.81608,2620.5,2620.1,0.56296363]
[1727362860730,0.45939377,2620.4,2620.3,3.81635]
[1727362860956,3.81567,2620.8,2620.3,0.7817]
[1727362861166,4.27521892,2620.7,2620.3,0.82818134]
[1727362861335,0.45934892,2620.6,2620.3,0.82818134]
[1727362861565,3.81496,2621.3,2620.5,0.7964]
[1727362861765,0.45925123,2621.2,2620.8,4.37383125]
[1727362862057,1.57024383,2621.9,2621.2,0.8036]
[1727362862306,3.8148,2621.4,2621.3,0.04475242]
[1727362862468,4.27392694,2621.4,2621.3,0.04475242]
[1727362862663,3.8149,2621.3,2621.2,0.8036]
[1727362862859,4.27402694,2621.3,2621.2,0.8036]
[1727362864290,4.27402694,2621.3,2621.2,0.84847182]
[1727362864889,4.27402694,2621.3,2621.2,0.8036]
[1727362865414,3.8149,2621.3,2621.2,0.8036]
[1727362865604,4.27355551,2621.3,2621.2,0.8036]
[1727362866274,3.81516,2621.2,2620.8,0.814]
[1727362866501,3.81548,2620.9,2620.8,0.814]
[1727362866822,0.45862032,2620.9,2620.8,0.814]
[1727362867178,0.45862032,2620.9,2620.8,0.85934952]
[1727362867381,4.27410032,2620.9,2620.8,0.04534952]
[1727362867698,4.27410032,2620.9,2620.5,0.814]
[1727362867699,3.81592,2620.6,2620.5,0.814]
[1727362867896,4.27454032,2620.6,2620.5,0.814]
[1727362868102,4.27454032,2620.6,2620.5,0.85970788]
[1727362868622,4.27454032,2620.6,2620.5,0.814]
[1727362868820,4.27454664,2620.6,2620.5,0.814]
[1727362869036,4.27454664,2620.6,2620.5,0.85970788]
[1727362870546,4.27454664,2620.6,2620.1,0.7948]
[1727362870547,3.8165,2620.2,2620.1,0.7948]
[1727362870841,0.45862664,2620.2,2620.1,0.7948]
[1727362870996,3.81598,2620.6,2620.1,0.84098583]
[1727362871196,3.81621,2620.4,2620.3,0.785]
[1727362871501,4.27481222,2620.4,2620.3,0.83094684]
[1727362871930,4.27481222,2620.4,2620.3,0.785]
[1727362872130,4.27481222,2620.4,2620.3,0.83094684]
[1727362872333,4.27481222,2620.4,2620.3,0.785]
[1727362872540,4.27481222,2620.4,2620.3,0.83094684]
[1727362872691,4.27481222,2620.4,2620.3,0.785]
[1727362872901,0.45860222,2620.4,2620.3,0.785]
[1727362873204,0.45860222,2620.4,2620.3,0.83094684]
[1727362873794,0.45860222,2620.4,2620.3,0.785]
[1727362874028,0.45860222,2620.4,2620.3,0.83094684]
[1727362874491,3.81592,2620.6,2620.3,0.83094684]
[1727362874691,3.81565,2620.8,2620.4,0.07631753]
[1727362875006,1.57024383,2621.2,2620.5,0.82270788]
[1727362875007,3.81531,2621.1,2620.5,0.82270788]
[1727362875211,0.45486067,2621.0,2620.7,0.777]
[1727362875392,3.81511,2621.2,2620.7,0.777]
[1727362875393,0.45486067,2620.9,2620.8,0.07630331]
[1727362875599,0.45486067,2620.9,2620.8,0.87755283]
[1727362875851,1.95833324,2621.7,2621.0,3.81532]
[1727362875852,3.81471,2621.5,2621.0,3.81532]
[1727362876139,3.81447,2621.6,2621.1,0.80089123]
[1727362876342,3.81447,2621.6,2621.3,0.7559]
[1727362876734,3.81447,2621.6,2621.4,0.04324558]
[1727362876926,3.814,2622.0,2621.5,0.7894]
[1727362877121,3.81373,2622.1,2621.6,0.7894]
[1727362877321,3.81373,2622.1,2621.8,0.7636]
[1727362877623,7.62708,2622.3,2621.9,0.04429093]
[1727362877967,3.81351,2622.3,2622.0,0.7636]
[1727362878253,7.62704,2622.3,2622.1,0.04403522]
[1727362878458,3.81351,2622.3,2622.1,0.04403522]
[1727362878654,2.00441474,2623.2,2622.2,0.7577]
[1727362878655,3.81339,2622.4,2622.2,0.7577]
[1727362878866,3.81339,2622.4,2622.3,0.04367233]
[1727362879063,3.81339,2622.4,2622.2,0.7577]
[1727362879273,4.26739619,2622.3,2621.3,0.7832]
[1727362879582,3.81419,2621.8,2621.4,0.7832]
[1727362880056,3.8144,2621.7,2621.4,0.7832]
[1727362880269,3.81338,2622.4,2621.4,0.7832]
[1727362880482,3.8146,2621.5,2621.4,0.7832]
[1727362881233,3.81524,2621.1,2620.8,0.8104]
[1727362881539,4.26852372,2621.5,2621.0,0.8104]
[1727362881540,3.81464,2621.5,2621.0,0.8104]
[1727362881779,3.81493,2621.3,2621.0,0.8104]
[1727362882144,3.8142,2621.8,2621.0,0.8104]
[1727362882347,7.63001,2621.3,2621.0,0.8104]
[1727362882559,4.19562,2621.8,2621.0,0.8104]
[1727362882560,3.81519,2621.1,2621.0,0.8104]
[1727362883885,3.81505,2621.2,2621.0,0.8104]
[1727362884038,7.63024,2621.2,2621.0,0.8104]
[1727362884471,3.81519,2621.1,2621.0,0.8104]
[1727362884859,3.81519,2621.1,2620.4,0.8324]
[1727362884860,0.85833665,2621.1,2620.4,0.8324]
[1727362885183,3.81556,2620.9,2620.4,0.8324]
[1727362885395,7.63118,2620.9,2620.4,0.8324]
[1727362885564,3.81528,2621.1,2620.5,0.8032]
[1727362885765,3.81528,2621.1,2620.7,0.8032]
[1727362885963,3.81541,2621.0,2620.7,0.8032]
[1727362886177,0.8159,2621.7,2620.8,0.04114677]
[1727362886178,3.81548,2620.9,2620.8,0.04114677]
[1727362886554,3.81636,2620.3,2620.1,0.8264]
[1727362887105,3.81636,2620.3,2619.7,0.7597]
[1727362887283,3.81716,2619.8,2619.7,0.7597]
[1727362888091,3.81694,2619.9,2619.7,0.7597]
[1727362888261,3.81692,2620.0,2619.7,5.12742541]
[1727362888465,3.81692,2620.0,2619.7,1.27394254]
[1727362888662,3.81657,2620.2,2619.7,4.57692]
[1727362888869,3.81626,2620.4,2619.8,0.7982]
[1727362889065,3.81592,2620.6,2620.0,4.36772541]
[1727362889273,3.81621,2620.4,2620.2,0.7982]
[1727362889691,6.81516,2621.2,2620.2,0.7982]
[1727362889990,3.81541,2621.0,2620.3,4.36772541]
[1727362890199,3.81533,2621.0,2620.5,3.81602]
[1727362890497,3.81533,2621.0,2620.6,0.459782]
[1727362890690,3.81566,2620.8,2620.4,0.7818]
[1727362891459,3.8159,2620.7,2620.1,0.7916]
[1727362891681,3.81661,2620.2,2620.1,0.7916]
[1727362891993,3.8165,2620.2,2620.1,0.8049686]
[1727362894194,3.91181265,2620.2,2620.1,0.0133686]
[1727362894524,3.8165,2620.2,2620.1,0.0133686]
[1727362894739,4.67509865,2620.2,2620.1,0.0133686]
[1727362894888,5.03399175,2620.2,2620.1,0.0133686]
[1727362896547,4.27070575,2620.2,2620.1,0.0133686]
[1727362897281,0.45431959,2620.2,2620.1,0.0133686]
[1727362897521,3.81636,2620.3,2620.1,0.86154766]
[1727362898136,3.8163,2620.4,2620.1,0.86154766]
[1727362898439,4.58088,2621.0,2620.1,0.86154766]
[1727362898645,3.81645,2620.3,2620.1,0.86154766]
[1727362899241,7.6329,2620.3,2620.1,0.86154766]
[1727362899434,7.6329,2620.3,2620.1,0.05654766]
[1727362899435,3.91181265,2620.2,2620.1,0.05654766]
[1727362899641,4.36636285,2620.2,2620.1,0.05654766]
[1727362899830,5.26159414,2620.2,2620.1,0.0133686]
[1727362900334,5.16628149,2620.2,2620.1,0.0133686]
[1727362900536,5.26159414,2620.2,2620.1,0.0133686]
[1727362900708,10.11955325,2620.2,2620.1,0.0133686]
[1727362901107,8.96278149,2620.2,2620.1,0.0133686]
[1727362901511,4.2710502,2620.2,2620.1,0.0133686]
[1727362902010,4.2710502,2620.2,2620.1,0.05691464]
[1727362902241,4.2710502,2620.2,2620.1,0.0133686]
[1727362902699,4.2710502,2620.2,2620.1,0.05691464]